Workbook

Sheet Доходы
A2: ОТЧЕТ ОБ ИСПОЛНЕНИИ БЮДЖЕТА | F2: КОДЫ
E3: Форма по ОКУД | F3: 0503117 | H3: C:\117Y01.txt
A4: на 01.03.2017 г. | E4: Дата | F4: 01.03.2017 | H4: 01.03.2017
E5: по ОКПО | F5: 73276193 | H5: 117
A6: Наименование финансового органа: | B6: АДМИНИСТРАЦИЯ СЕМИКАРАКОРСКОГО ГОРОДСКОГО ПОСЕЛЕНИЯ | E6: Глава по БК | F6: 951 | H6: 5
A7: Наименование публично-правового образования: | B7: ППО Семикаракорского городского поселения Семикаракорского района | E7: по ОКТМО | F7: 60651101
A8: Периодичность: годовая
A9: Единица измерения: руб. | E9: по ОКЕИ | F9: 383 | H9: 1
A10: 1. Доходы бюджета
A11: Наименование показателя | B11: Код строки | C11: Код дохода по бюджетной классификации | D11: Утвержденные бюджетные назначения | E11: Исполнено | F11: Неисполненные назначения
A18: 1 | B18: 2 | C18: 3 | D18: 4 | E18: 5 | F18: 6
A19: Доходы бюджета - всего | B19: 010 | C19: X | D19: =D21+D86 -> 74666400 | E19: 6089433.49 | F19: =IF(OR(D19="-",E19>=D19),"-",D19-IF(E19="-",0,E19)) -> 68576966.51
A20: в том числе:
A21: НАЛОГОВЫЕ И НЕНАЛОГОВЫЕ ДОХОДЫ | B21: 010 | C21: 000 10000000000000000 | D21: =D22+D35+D41+D49+D59+D70+D74+D82+D83 -> 70016200 | E21: 6089233.49 | F21: =IF(OR(D21="-",E21>=D21),"-",D21-IF(E21="-",0,E21)) -> 63926966.51
A22: НАЛОГИ НА ПРИБЫЛЬ, ДОХОДЫ | B22: 010 | C22: 182 10100000000000000 | D22: 17900000 | E22: 2186288.47 | F22: 15713711.53
A23: Налог на доходы физических лиц | B23: 010 | C23: 182 10102000010000110 | D23: 17900000 | E23: 2186288.47 | F23: 15713711.53
A24: Налог на доходы физических лиц с доходов, источником которых является налоговый агент, за исключением доходов, в отношении которых исчисление и уплата налога осуществляются в соответствии со статьями 227, 2271 и 228 Налогового кодекса Российской Федерации | B24: 010 | C24: 182 10102010010000110 | D24: 17600000 | E24: 2167730.94 | F24: 15432269.06
A25: Налог на доходы физических лиц с доходов, источником которых является налоговый агент, за исключением доходов, в отношении которых исчисление и уплата налога осуществляются в соответствии со статьями 227, 227.1 и 228 Налогового кодекса Российской Федерации (сумма платежа (перерасчеты, недоимка и задолженность по соответствующему платежу, в том числе по отмененному)) | B25: 010 | C25: 182 10102010011000110 | D25: - | E25: 2164939.66 | F25: -
A26: Налог на доходы физических лиц с доходов, источником которых является налоговый агент, за исключением доходов, в отношении которых исчисление и уплата налога осуществляются в соответствии со статьями 227, 227.1 и 228 Налогового кодекса Российской Федерации (пени по соответствующему платежу) | B26: 010 | C26: 182 10102010012100110 | D26: - | E26: 528.84 | F26: -
A27: Налог на доходы физических лиц с доходов, источником которых является налоговый агент, за исключением доходов, в отношении которых исчисление и уплата налога осуществляются в соответствии со статьями 227, 227.1 и 228 Налогового кодекса Российской Федерации (суммы денежных взысканий (штрафов) по соответствующему платежу согласно законодательству Российской Федерации) | B27: 010 | C27: 182 10102010013000110 | D27: - | E27: 2270.44 | F27: -
A28: Налог на доходы физических лиц с доходов, источником которых является налоговый агент, за исключением доходов, в отношении которых исчисление и уплата налога осуществляются в соответствии со статьями 227, 227.1 и 228 Налогового кодекса Российской Федерации (прочие поступления) | B28: 010 | C28: 182 10102010014000110 | D28: - | E28: -8 | F28: -
A29: Налог на доходы физических лиц с доходов, полученных от осуществления деятельности физическими лицами, зарегистрированными в качестве индивидуальных предпринимателей, нотариусов, занимающихся частной практикой, адвокатов, учредивших адвокатские кабинеты, и других лиц, занимающихся частной практикой в соответствии со статьей 227 Налогового кодекса Российской Федерации | B29: 010 | C29: 182 10102020010000110 | D29: 300000 | E29: 15180.97 | F29: 284819.03
A30: Налог на доходы физических лиц с доходов, полученных от осуществления деятельности физическими лицами, зарегистрированными в качестве индивидуальных предпринимателей, нотариусов, занимающихся частной практикой, адвокатов, учредивших адвокатские кабинеты, и других лиц, занимающихся частной практикой в соответствии со статьей 227 Налогового кодекса Российской Федерации (сумма платежа (перерасчеты, недоимка и задолженность по соответствующему платежу, в том числе по отмененному)) | B30: 010 | C30: 182 10102020011000110 | D30: - | E30: 14689.61 | F30: -
A31: Налог на доходы физических лиц с доходов, полученных от осуществления деятельности физическими лицами, зарегистрированными в качестве индивидуальных предпринимателей, нотариусов, занимающихся частной практикой, адвокатов, учредивших адвокатские кабинеты, и других лиц, занимающихся частной практикой в соответствии со статьей 227 Налогового кодекса Российской Федерации (суммы денежных взысканий (штрафов) по соответствующему платежу согласно законодательству Российской Федерации) | B31: 010 | C31: 182 10102020013000110 | D31: - | E31: 491.36 | F31: -
A32: Налог на доходы физических лиц с доходов, полученных физическими лицами в соответствии со статьей 228 Налогового кодекса Российской Федерации | B32: 010 | C32: 182 10102030010000110 | D32: - | E32: 3376.56 | F32: -
A33: Налог на доходы физических лиц с доходов, полученных физическими лицами в соответствии со статьей 228 Налогового кодекса Российской Федерации (сумма платежа (перерасчеты, недоимка и задолженность по соответствующему платежу, в том числе по отмененному)) | B33: 010 | C33: 182 10102030011000110 | D33: - | E33: 1831.87 | F33: -
A34: Налог на доходы физических лиц с доходов, полученных физическими лицами в соответствии со статьей 228 Налогового кодекса Российской Федерации (суммы денежных взысканий (штрафов) по соответствующему платежу согласно законодательству Российской Федерации) | B34: 010 | C34: 182 10102030013000110 | D34: - | E34: 1544.69 | F34: -
A35: НАЛОГИ НА ТОВАРЫ (РАБОТЫ, УСЛУГИ), РЕАЛИЗУЕМЫЕ НА ТЕРРИТОРИИ РОССИЙСКОЙ ФЕДЕРАЦИИ | B35: 010 | C35: 100 10300000000000000 | D35: =D36 -> 3887000 | E35: 359204.54 | F35: 3527795.46
A36: Акцизы по подакцизным товарам (продукции), производимым на территории Российской Федерации | B36: 010 | C36: 100 10302000010000110 | D36: =D37+D38+D39+D40 -> 3887000 | E36: 359204.54 | F36: 3527795.46
A37: Доходы от уплаты акцизов на дизельное топливо, подлежащие распределению между бюджетами субъектов Российской Федерации и местными бюджетами с учетом установленных дифференцированных нормативов отчислений в местные бюджеты | B37: 010 | C37: 100 10302230010000110 | D37: 1327400 | E37: 127454.12 | F37: 1199945.88
A38: Доходы от уплаты акцизов на моторные масла для дизельных и (или) карбюраторных (инжекторных) двигателей, подлежащие распределению между бюджетами субъектов Российской Федерации и местными бюджетами с учетом установленных дифференцированных нормативов отчислений в местные бюджеты | B38: 010 | C38: 100 10302240010000110 | D38: 13200 | E38: 1336.68 | F38: 11863.32
A39: Доходы от уплаты акцизов на автомобильный бензин, подлежащие распределению между бюджетами субъектов Российской Федерации и местными бюджетами с учетом установленных дифференцированных нормативов отчислений в местные бюджеты | B39: 010 | C39: 100 10302250010000110 | D39: 2811900 | E39: 250267.94 | F39: 2561632.06
A40: Доходы от уплаты акцизов на прямогонный бензин, подлежащие распределению между бюджетами субъектов Российской Федерации и местными бюджетами с учетом установленных дифференцированных нормативов отчислений в местные бюджеты | B40: 010 | C40: 100 10302260010000110 | D40: -265500 | E40: -19854.2 | F40: -
A41: НАЛОГИ НА СОВОКУПНЫЙ ДОХОД | B41: 010 | C41: 182 10500000000000000 | D41: 4500000 | E41: 41384.68 | F41: 4458615.32
A42: Единый сельскохозяйственный налог | B42: 010 | C42: 182 10503000010000110 | D42: 4500000 | E42: 41384.68 | F42: 4458615.32
A43: Единый сельскохозяйственный налог | B43: 010 | C43: 182 10503010010000110 | D43: 4500000 | E43: 41386.78 | F43: 4458613.22
A44: Единый сельскохозяйственный налог (сумма платежа (перерасчеты, недоимка и задолженность по соответствующему платежу, в том числе по отмененному)) | B44: 010 | C44: 182 10503010011000110 | D44: - | E44: 41328.5 | F44: -
A45: Единый сельскохозяйственный налог (пени по соответствующему платежу) | B45: 010 | C45: 182 10503010012100110 | D45: - | E45: 8.68 | F45: -
A46: Единый сельскохозяйственный налог (суммы денежных взысканий (штрафов) по соответствующему платежу согласно законодательству Российской Федерации) | B46: 010 | C46: 182 10503010013000110 | D46: - | E46: 49.6 | F46: -
A47: Единый сельскохозяйственный налог (за налоговые периоды, истекшие до 1 января 2011 года) | B47: 010 | C47: 182 10503020010000110 | D47: - | E47: -2.1 | F47: -
A48: Единый сельскохозяйственный налог (за налоговые периоды, истекшие до 1 января 2011 года) (пени по соответствующему платежу) | B48: 010 | C48: 182 10503020012100110 | D48: - | E48: -2.1 | F48: -
A49: НАЛОГИ НА ИМУЩЕСТВО | B49: 010 | C49: 182 10600000000000000 | D49: 37469000 | E49: 3095025.86 | F49: 34373974.14
A50: Налог на имущество физических лиц | B50: 010 | C50: 182 10601000000000110 | D50: 4324000 | E50: 176295.93 | F50: 4147704.07
A51: Налог на имущество физических лиц, взимаемый по ставкам, применяемым к объектам налогообложения, расположенным в границах городских поселений | B51: 010 | C51: 182 10601030130000110 | D51: 4324000 | E51: 176295.93 | F51: 4147704.07
A52: Налог на имущество физических лиц, взимаемый по ставкам, применяемым к объектам налогообложения, расположенным в границах городских поселений (сумма платежа (перерасчеты, недоимка и задолженность по соответствующему платежу, в том числе по отмененному)) | B52: 010 | C52: 182 10601030131000110 | D52: - | E52: 171019.63 | F52: -
A53: Налог на имущество физических лиц, взимаемый по ставкам, применяемым к объектам налогообложения, расположенным в границах городских поселений (пени по соответствующему платежу) | B53: 010 | C53: 182 10601030132100110 | D53: - | E53: 5276.3 | F53: =IF(OR(D53="-",E53>=D53),"-",D53-IF(E53="-",0,E53)) -> -
A54: Земельный налог | B54: 010 | C54: 182 10606000000000110 | D54: 33145000 | E54: 2918729.93 | F54: 30226270.07
A55: Земельный налог с организаций | B55: 010 | C55: 182 10606030000000110 | D55: 20745000 | E55: 2593934.7 | F55: 18151065.3
A56: Земельный налог с организаций, обладающих земельным участком, расположенным в границах городских поселений | B56: 010 | C56: 182 10606033130000110 | D56: 20745000 | E56: 2593934.7 | F56: 18151065.3
A57: Земельный налог с физических лиц | B57: 010 | C57: 182 10606040000000110 | D57: 12400000 | E57: 324795.23 | F57: 12075204.77
A58: Земельный налог с физических лиц, обладающих земельным участком, расположенным в границах городских поселений | B58: 010 | C58: 182 10606043130000110 | D58: 12400000 | E58: 324795.23 | F58: 12075204.77
A59: ДОХОДЫ ОТ ИСПОЛЬЗОВАНИЯ ИМУЩЕСТВА, НАХОДЯЩЕГОСЯ В ГОСУДАРСТВЕННОЙ И МУНИЦИПАЛЬНОЙ СОБСТВЕННОСТИ | B59: 010 | C59: 000 11100000000000000 | D59: 3496200 | E59: 135608.63 | F59: 3360591.37
A60: Доходы, получаемые в виде арендной либо иной платы за передачу в возмездное пользование государственного и муниципального имущества (за исключением имущества бюджетных и автономных учреждений, а также имущества государственных и муниципальных унитарных предприятий, в том числе казенных) | B60: 010 | C60: 000 11105000000000120 | D60: 3476200 | E60: 130349.29 | F60: 3345850.71
A61: Доходы, получаемые в виде арендной платы за земельные участки, государственная собственность на которые не разграничена, а также средства от продажи права на заключение договоров аренды указанных земельных участков | B61: 010 | C61: 815 11105010000000120 | D61: 3408800 | E61: 128101.13 | F61: 3280698.87
A62: Доходы, получаемые в виде арендной платы за земельные участки, государственная собственность на которые не разграничена и которые расположены в границах городских поселений, а также средства от продажи права на заключение договоров аренды указанных земельных участков | B62: 010 | C62: 815 11105013130000120 | D62: 3408800 | E62: 128101.13 | F62: 3280698.87
A63: Доходы, получаемые в виде арендной платы за земли после разграничения государственной собственности на землю, а также средства от продажи права на заключение договоров аренды указанных земельных участков (за исключением земельных участков бюджетных и автономных учреждений) | B63: 010 | C63: 951 11105020000000120 | D63: 67400 | E63: - | F63: -
A64: Доходы, получаемые в виде арендной платы, а также средства от продажи права на заключение договоров аренды за земли, находящиеся в собственности городских поселений (за исключением земельных участков муниципальных бюджетных и автономных учреждений) | B64: 010 | C64: 951 11105025130000120 | D64: 67400 | E64: - | F64: -
A65: Доходы от сдачи в аренду имущества, составляющего государственную (муниципальную) казну (за исключением земельных участков) | B65: 010 | C65: 951 11105070000000120 | D65: - | E65: 2248.16 | F65: -
A66: Доходы от сдачи в аренду имущества, составляющего казну городских поселений (за исключением земельных участков) | B66: 010 | C66: 951 11105075130000120 | D66: - | E66: 2248.16 | F66: -
A67: Прочие доходы от использования имущества и прав, находящихся в государственной и муниципальной собственности (за исключением имущества бюджетных и автономных учреждений, а также имущества государственных и муниципальных унитарных предприятий, в том числе казенных) | B67: 010 | C67: 951 11109000000000120 | D67: 20000 | E67: 5259.34 | F67: 14740.66
A68: Прочие поступления от использования имущества, находящегося в государственной и муниципальной собственности (за исключением имущества бюджетных и автономных учреждений, а также имущества государственных и муниципальных унитарных предприятий, в том числе казенных) | B68: 010 | C68: 951 11109040000000120 | D68: 20000 | E68: 5259.34 | F68: 14740.66
A69: Прочие поступления от использования имущества, находящегося в собственности городских поселений (за исключением имущества муниципальных бюджетных и автономных учреждений, а также имущества муниципальных унитарных предприятий, в том числе казенных) | B69: 010 | C69: 951 11109045130000120 | D69: 20000 | E69: 5259.34 | F69: 14740.66
A70: ДОХОДЫ ОТ ОКАЗАНИЯ ПЛАТНЫХ УСЛУГ (РАБОТ) И КОМПЕНСАЦИИ ЗАТРАТ ГОСУДАРСТВА | B70: 010 | C70: 953 11300000000000000 | D70: 200000 | E70: 1195.34 | F70: 198804.66
A71: Доходы от оказания платных услуг (работ) | B71: 010 | C71: 953 11301000000000130 | D71: 200000 | E71: 1195.34 | F71: 198804.66
A72: Прочие доходы от оказания платных услуг (работ) | B72: 010 | C72: 953 11301990000000130 | D72: 200000 | E72: 1195.34 | F72: 198804.66
A73: Прочие доходы от оказания платных услуг (работ) получателями средств бюджетов городских поселений | B73: 010 | C73: 953 11301995130000130 | D73: 200000 | E73: 1195.34 | F73: 198804.66
A74: ДОХОДЫ ОТ ПРОДАЖИ МАТЕРИАЛЬНЫХ И НЕМАТЕРИАЛЬНЫХ АКТИВОВ | B74: 010 | C74: 000 11400000000000000 | D74: 2300000 | E74: 248406.38 | F74: 2051593.62
A75: Доходы от продажи земельных участков, находящихся в государственной и муниципальной собственности | B75: 010 | C75: 000 11406000000000430 | D75: 2300000 | E75: 248406.38 | F75: 2051593.62
A76: Доходы от продажи земельных участков, государственная собственность на которые не разграничена | B76: 010 | C76: 902 11406010000000430 | D76: 800000 | E76: 246076.38 | F76: 553923.62
A77: Доходы от продажи земельных участков, государственная собственность на которые не разграничена и которые расположены в границах городских поселений | B77: 010 | C77: 902 11406013130000430 | D77: 800000 | E77: 246076.38 | F77: 553923.62
A78: Доходы от продажи земельных участков, государственная собственность на которые разграничена (за исключением земельных участков бюджетных и автономных учреждений) | B78: 010 | C78: 951 11406020000000430 | D78: 1500000 | E78: 2330 | F78: 1497670
A79: Доходы от продажи земельных участков, находящихся в собственности городских поселений (за исключением земельных участков муниципальных бюджетных и автономных учреждений) | B79: 010 | C79: 951 11406025130000430 | D79: 1500000 | E79: 2330 | F79: 1497670
A80: ШТРАФЫ, САНКЦИИ, ВОЗМЕЩЕНИЕ УЩЕРБА | B80: 010 | C80: 802 11600000000000000 | D80: 28000 | E80: 2300 | F80: 25700
A81: Денежные взыскания (штрафы), установленные законами субъектов Российской Федерации за несоблюдение муниципальных правовых актов | B81: 010 | C81: 802 11651000020000140 | D81: 28000 | E81: 2300 | F81: 25700
A82: Денежные взыскания (штрафы), установленные законами субъектов Российской Федерации за несоблюдение муниципальных правовых актов, зачисляемые в бюджеты поселений | B82: 010 | C82: 802 11651040020000140 | D82: 28000 | E82: 2300 | F82: 25700
A83: ПРОЧИЕ НЕНАЛОГОВЫЕ ДОХОДЫ | B83: 010 | C83: 951 11700000000000000 | D83: 236000 | E83: 19819.59 | F83: 216180.41
A84: Прочие неналоговые доходы | B84: 010 | C84: 951 11705000000000180 | D84: 236000 | E84: 19819.59 | F84: 216180.41
A85: Прочие неналоговые доходы бюджетов городских поселений | B85: 010 | C85: 951 11705050130000180 | D85: 236000 | E85: 19819.59 | F85: =IF(OR(D85="-",E85>=D85),"-",D85-IF(E85="-",0,E85)) -> 216180.41
A86: БЕЗВОЗМЕЗДНЫЕ ПОСТУПЛЕНИЯ | B86: 010 | C86: 951 20000000000000000 | D86: 4650200 | E86: 200 | F86: 4650000
A87: БЕЗВОЗМЕЗДНЫЕ ПОСТУПЛЕНИЯ ОТ ДРУГИХ БЮДЖЕТОВ БЮДЖЕТНОЙ СИСТЕМЫ РОССИЙСКОЙ ФЕДЕРАЦИИ | B87: 010 | C87: 951 20200000000000000 | D87: 4650200 | E87: 200 | F87: 4650000
A88: Субвенции бюджетам бюджетной системы Российской Федерации | B88: 010 | C88: 951 20230000000000151 | D88: 200 | E88: 200 | F88: -
A89: Субвенции местным бюджетам на выполнение передаваемых полномочий субъектов Российской Федерации | B89: 010 | C89: 951 20230024000000151 | D89: 200 | E89: 200 | F89: -
A90: Субвенции бюджетам городских поселений на выполнение передаваемых полномочий субъектов Российской Федерации | B90: 010 | C90: 951 20230024130000151 | D90: 200 | E90: 200 | F90: -
A91: Иные межбюджетные трансферты | B91: 010 | C91: 951 20240000000000151 | D91: 4650000 | E91: - | F91: -
A92: Прочие межбюджетные трансферты, передаваемые бюджетам | B92: 010 | C92: 951 20249999000000151 | D92: 4650000 | E92: - | F92: -
A93: Прочие межбюджетные трансферты, передаваемые бюджетам городских поселений | B93: 010 | C93: 951 20249999130000151 | D93: 4650000 | E93: - | F93: -

Sheet Расходы
A2: 2. Расходы бюджета | F2: Форма 0503117 с.2
A4: Наименование показателя | B4: Код строки | C4: Код расхода по бюджетной классификации | D4: Утвержденные бюджетные назначения | E4: Исполнено | F4: Неисполненные назначения
A12: 1 | B12: 2 | C12: 3 | D12: 4 | E12: 5 | F12: 6
A13: Расходы бюджета - всего | B13: 200 | C13: x | D13: 72419349.32 | E13: 7778783.21 | F13: =IF(OR(D13="-",E13>=D13),"-",D13-IF(E13="-",0,E13)) -> 64640566.11
A14: в том числе:
A15: ОБЩЕГОСУДАРСТВЕННЫЕ ВОПРОСЫ | B15: 200 | C15: 000 0100 0000000000 000 | D15: 17154555.7 | E15: 1871631.71 | F15: =IF(OR(D15="-",E15>=D15),"-",D15-IF(E15="-",0,E15)) -> 15282923.99
A16: Расходы на выплаты персоналу в целях обеспечения выполнения функций государственными (муниципальными) органами, казенными учреждениями, органами управления государственными внебюджетными фондами | B16: 200 | C16: 000 0100 0000000000 100 | D16: 12902305.5 | E16: 1342495.16 | F16: 11559810.34
A17: Расходы на выплаты персоналу государственных (муниципальных) органов | B17: 200 | C17: 000 0100 0000000000 120 | D17: 12902305.5 | E17: 1342495.16 | F17: 11559810.34
A18: Фонд оплаты труда государственных (муниципальных) органов | B18: 200 | C18: 000 0100 0000000000 121 | D18: 8819800 | E18: 866034.96 | F18: 7953765.04
A19: Иные выплаты персоналу государственных (муниципальных) органов, за исключением фонда оплаты труда | B19: 200 | C19: 000 0100 0000000000 122 | D19: 754600 | E19: 219318.77 | F19: 535281.23
A20: Взносы по обязательному социальному страхованию на выплаты денежного содержания и иные выплаты работникам государственных (муниципальных) органов | B20: 200 | C20: 000 0100 0000000000 129 | D20: 3327905.5 | E20: 257141.43 | F20: 3070764.07
A21: Закупка товаров, работ и услуг для обеспечения государственных (муниципальных) нужд | B21: 200 | C21: 000 0100 0000000000 200 | D21: 3463850.2 | E21: 259758.99 | F21: 3204091.21
A22: Иные закупки товаров, работ и услуг для обеспечения государственных (муниципальных) нужд | B22: 200 | C22: 000 0100 0000000000 240 | D22: 3463850.2 | E22: 259758.99 | F22: 3204091.21
A23: Прочая закупка товаров, работ и услуг для обеспечения государственных (муниципальных) нужд | B23: 200 | C23: 000 0100 0000000000 244 | D23: 3463850.2 | E23: 259758.99 | F23: 3204091.21
A24: Социальное обеспечение и иные выплаты населению | B24: 200 | C24: 000 0100 0000000000 300 | D24: 107200 | E24: 18552.74 | F24: 88647.26
A25: Социальные выплаты гражданам, кроме публичных нормативных социальных выплат | B25: 200 | C25: 000 0100 0000000000 320 | D25: 107200 | E25: 18552.74 | F25: 88647.26
A26: Пособия, компенсации и иные социальные выплаты гражданам, кроме публичных нормативных обязательств | B26: 200 | C26: 000 0100 0000000000 321 | D26: 107200 | E26: 18552.74 | F26: 88647.26
A27: Иные бюджетные ассигнования | B27: 200 | C27: 000 0100 0000000000 800 | D27: 681200 | E27: 250824.82 | F27: 430375.18
A28: Исполнение судебных актов | B28: 200 | C28: 000 0100 0000000000 830 | D28: 200000 | E28: 200000 | F28: -
A29: Исполнение судебных актов Российской Федерации и мировых соглашений по возмещению вреда, причиненного в результате незаконных действий (бездействия) органов государственной власти (государственных органов), органов местного самоуправления либо должностных лиц этих органов, а также в результате деятельности учреждений | B29: 200 | C29: 000 0100 0000000000 831 | D29: 200000 | E29: 200000 | F29: -
A30: Уплата налогов, сборов и иных платежей | B30: 200 | C30: 000 0100 0000000000 850 | D30: 181200 | E30: 50824.82 | F30: 130375.18
A31: Уплата налога на имущество организаций и земельного налога | B31: 200 | C31: 000 0100 0000000000 851 | D31: 45000 | E31: - | F31: -
A32: Уплата прочих налогов, сборов | B32: 200 | C32: 000 0100 0000000000 852 | D32: 46200 | E32: 331.91 | F32: 45868.09
A33: Уплата иных платежей | B33: 200 | C33: 000 0100 0000000000 853 | D33: 90000 | E33: 50492.91 | F33: 39507.09
A34: Резервные средства | B34: 200 | C34: 000 0100 0000000000 870 | D34: 300000 | E34: - | F34: -
A35: Функционирование высшего должностного лица субъекта Российской Федерации и муниципального образования | B35: 200 | C35: 000 0102 0000000000 000 | D35: 1082600 | E35: 89242.81 | F35: 993357.19
A36: Расходы на выплаты персоналу в целях обеспечения выполнения функций государственными (муниципальными) органами, казенными учреждениями, органами управления государственными внебюджетными фондами | B36: 200 | C36: 000 0102 0000000000 100 | D36: 1082600 | E36: 89242.81 | F36: 993357.19
A37: Расходы на выплаты персоналу государственных (муниципальных) органов | B37: 200 | C37: 000 0102 0000000000 120 | D37: 1082600 | E37: 89242.81 | F37: 993357.19
A38: Фонд оплаты труда государственных (муниципальных) органов | B38: 200 | C38: 000 0102 0000000000 121 | D38: 796000 | E38: 73413.83 | F38: 722586.17
A39: Иные выплаты персоналу государственных (муниципальных) органов, за исключением фонда оплаты труда | B39: 200 | C39: 000 0102 0000000000 122 | D39: 50800 | E39: - | F39: -
A40: Взносы по обязательному социальному страхованию на выплаты денежного содержания и иные выплаты работникам государственных (муниципальных) органов | B40: 200 | C40: 000 0102 0000000000 129 | D40: 235800 | E40: 15828.98 | F40: 219971.02
A41: Функционирование законодательных (представительных) органов государственной власти и представительных органов муниципальных образований | B41: 200 | C41: 000 0103 0000000000 000 | D41: 7000 | E41: - | F41: -
A42: Закупка товаров, работ и услуг для обеспечения государственных (муниципальных) нужд | B42: 200 | C42: 000 0103 0000000000 200 | D42: 7000 | E42: - | F42: -
A43: Иные закупки товаров, работ и услуг для обеспечения государственных (муниципальных) нужд | B43: 200 | C43: 000 0103 0000000000 240 | D43: 7000 | E43: - | F43: -
A44: Прочая закупка товаров, работ и услуг для обеспечения государственных (муниципальных) нужд | B44: 200 | C44: 000 0103 0000000000 244 | D44: 7000 | E44: - | F44: -
A45: Функционирование Правительства Российской Федерации, высших исполнительных органов государственной власти субъектов Российской Федерации, местных администраций | B45: 200 | C45: 000 0104 0000000000 000 | D45: 14378780.7 | E45: 1468508.25 | F45: 12910272.45
A46: Расходы на выплаты персоналу в целях обеспечения выполнения функций государственными (муниципальными) органами, казенными учреждениями, органами управления государственными внебюджетными фондами | B46: 200 | C46: 000 0104 0000000000 100 | D46: 11819705.5 | E46: 1253252.35 | F46: 10566453.15
A47: Расходы на выплаты персоналу государственных (муниципальных) органов | B47: 200 | C47: 000 0104 0000000000 120 | D47: 11819705.5 | E47: 1253252.35 | F47: =IF(OR(D47="-",E47>=D47),"-",D47-IF(E47="-",0,E47)) -> 10566453.15
A48: Фонд оплаты труда государственных (муниципальных) органов | B48: 200 | C48: 000 0104 0000000000 121 | D48: 8023800 | E48: 792621.13 | F48: 7231178.87
A49: Иные выплаты персоналу государственных (муниципальных) органов, за исключением фонда оплаты труда | B49: 200 | C49: 000 0104 0000000000 122 | D49: 703800 | E49: 219318.77 | F49: 484481.23
A50: Взносы по обязательному социальному страхованию на выплаты денежного содержания и иные выплаты работникам государственных (муниципальных) органов | B50: 200 | C50: 000 0104 0000000000 129 | D50: 3092105.5 | E50: 241312.45 | F50: 2850793.05
A51: Закупка товаров, работ и услуг для обеспечения государственных (муниципальных) нужд | B51: 200 | C51: 000 0104 0000000000 200 | D51: 2522275.2 | E51: 214923.99 | F51: 2307351.21
A52: Иные закупки товаров, работ и услуг для обеспечения государственных (муниципальных) нужд | B52: 200 | C52: 000 0104 0000000000 240 | D52: 2522275.2 | E52: 214923.99 | F52: 2307351.21
A53: Прочая закупка товаров, работ и услуг для обеспечения государственных (муниципальных) нужд | B53: 200 | C53: 000 0104 0000000000 244 | D53: 2522275.2 | E53: 214923.99 | F53: 2307351.21
A54: Иные бюджетные ассигнования | B54: 200 | C54: 000 0104 0000000000 800 | D54: 36800 | E54: 331.91 | F54: 36468.09
A55: Уплата налогов, сборов и иных платежей | B55: 200 | C55: 000 0104 0000000000 850 | D55: 36800 | E55: 331.91 | F55: 36468.09
A56: Уплата прочих налогов, сборов | B56: 200 | C56: 000 0104 0000000000 852 | D56: 36800 | E56: 331.91 | F56: 36468.09
A57: Резервные фонды | B57: 200 | C57: 000 0111 0000000000 000 | D57: 300000 | E57: - | F57: -
A58: Иные бюджетные ассигнования | B58: 200 | C58: 000 0111 0000000000 800 | D58: 300000 | E58: - | F58: -
A59: Резервные средства | B59: 200 | C59: 000 0111 0000000000 870 | D59: 300000 | E59: - | F59: -
A60: Другие общегосударственные вопросы | B60: 200 | C60: 000 0113 0000000000 000 | D60: 1386175 | E60: 313880.65 | F60: 1072294.35
A61: Закупка товаров, работ и услуг для обеспечения государственных (муниципальных) нужд | B61: 200 | C61: 000 0113 0000000000 200 | D61: 934575 | E61: 44835 | F61: 889740
A62: Иные закупки товаров, работ и услуг для обеспечения государственных (муниципальных) нужд | B62: 200 | C62: 000 0113 0000000000 240 | D62: 934575 | E62: 44835 | F62: 889740
A63: Прочая закупка товаров, работ и услуг для обеспечения государственных (муниципальных) нужд | B63: 200 | C63: 000 0113 0000000000 244 | D63: 934575 | E63: 44835 | F63: 889740
A64: Социальное обеспечение и иные выплаты населению | B64: 200 | C64: 000 0113 0000000000 300 | D64: 107200 | E64: 18552.74 | F64: 88647.26
A65: Социальные выплаты гражданам, кроме публичных нормативных социальных выплат | B65: 200 | C65: 000 0113 0000000000 320 | D65: 107200 | E65: 18552.74 | F65: 88647.26
A66: Пособия, компенсации и иные социальные выплаты гражданам, кроме публичных нормативных обязательств | B66: 200 | C66: 000 0113 0000000000 321 | D66: 107200 | E66: 18552.74 | F66: 88647.26
A67: Иные бюджетные ассигнования | B67: 200 | C67: 000 0113 0000000000 800 | D67: 344400 | E67: 250492.91 | F67: 93907.09
A68: Исполнение судебных актов | B68: 200 | C68: 000 0113 0000000000 830 | D68: 200000 | E68: 200000 | F68: -
A69: Исполнение судебных актов Российской Федерации и мировых соглашений по возмещению вреда, причиненного в результате незаконных действий (бездействия) органов государственной власти (государственных органов), органов местного самоуправления либо должностных лиц этих органов, а также в результате деятельности учреждений | B69: 200 | C69: 000 0113 0000000000 831 | D69: 200000 | E69: 200000 | F69: -
A70: Уплата налогов, сборов и иных платежей | B70: 200 | C70: 000 0113 0000000000 850 | D70: 144400 | E70: 50492.91 | F70: 93907.09
A71: Уплата налога на имущество организаций и земельного налога | B71: 200 | C71: 000 0113 0000000000 851 | D71: 45000 | E71: - | F71: -
A72: Уплата прочих налогов, сборов | B72: 200 | C72: 000 0113 0000000000 852 | D72: 9400 | E72: - | F72: -
A73: Уплата иных платежей | B73: 200 | C73: 000 0113 0000000000 853 | D73: 90000 | E73: 50492.91 | F73: 39507.09
A74: НАЦИОНАЛЬНАЯ БЕЗОПАСНОСТЬ И ПРАВООХРАНИТЕЛЬНАЯ ДЕЯТЕЛЬНОСТЬ | B74: 200 | C74: 000 0300 0000000000 000 | D74: 1289600 | E74: 182900 | F74: 1106700
A75: Закупка товаров, работ и услуг для обеспечения государственных (муниципальных) нужд | B75: 200 | C75: 000 0300 0000000000 200 | D75: 411700 | E75: - | F75: -
A76: Иные закупки товаров, работ и услуг для обеспечения государственных (муниципальных) нужд | B76: 200 | C76: 000 0300 0000000000 240 | D76: 411700 | E76: - | F76: -
A77: Прочая закупка товаров, работ и услуг для обеспечения государственных (муниципальных) нужд | B77: 200 | C77: 000 0300 0000000000 244 | D77: 411700 | E77: - | F77: -
A78: Межбюджетные трансферты | B78: 200 | C78: 000 0300 0000000000 500 | D78: 877900 | E78: 182900 | F78: 695000
A79: Иные межбюджетные трансферты | B79: 200 | C79: 000 0300 0000000000 540 | D79: 877900 | E79: 182900 | F79: =IF(OR(D79="-",E79>=D79),"-",D79-IF(E79="-",0,E79)) -> 695000
A80: Защита населения и территории от чрезвычайных ситуаций природного и техногенного характера, гражданская оборона | B80: 200 | C80: 000 0309 0000000000 000 | D80: 1289600 | E80: 182900 | F80: 1106700
A81: Закупка товаров, работ и услуг для обеспечения государственных (муниципальных) нужд | B81: 200 | C81: 000 0309 0000000000 200 | D81: 411700 | E81: - | F81: -
A82: Иные закупки товаров, работ и услуг для обеспечения государственных (муниципальных) нужд | B82: 200 | C82: 000 0309 0000000000 240 | D82: 411700 | E82: - | F82: -
A83: Прочая закупка товаров, работ и услуг для обеспечения государственных (муниципальных) нужд | B83: 200 | C83: 000 0309 0000000000 244 | D83: 411700 | E83: - | F83: -
A84: Межбюджетные трансферты | B84: 200 | C84: 000 0309 0000000000 500 | D84: 877900 | E84: 182900 | F84: 695000
A85: Иные межбюджетные трансферты | B85: 200 | C85: 000 0309 0000000000 540 | D85: 877900 | E85: 182900 | F85: 695000
A86: НАЦИОНАЛЬНАЯ ЭКОНОМИКА | B86: 200 | C86: 000 0400 0000000000 000 | D86: 7420311.13 | E86: 751796.68 | F86: 6668514.45
A87: Закупка товаров, работ и услуг для обеспечения государственных (муниципальных) нужд | B87: 200 | C87: 000 0400 0000000000 200 | D87: 7420311.13 | E87: 751796.68 | F87: 6668514.45
A88: Иные закупки товаров, работ и услуг для обеспечения государственных (муниципальных) нужд | B88: 200 | C88: 000 0400 0000000000 240 | D88: 7420311.13 | E88: 751796.68 | F88: 6668514.45
A89: Прочая закупка товаров, работ и услуг для обеспечения государственных (муниципальных) нужд | B89: 200 | C89: 000 0400 0000000000 244 | D89: 7420311.13 | E89: 751796.68 | F89: 6668514.45
A90: Дорожное хозяйство (дорожные фонды) | B90: 200 | C90: 000 0409 0000000000 000 | D90: 7170311.13 | E90: 751796.68 | F90: 6418514.45
A91: Закупка товаров, работ и услуг для обеспечения государственных (муниципальных) нужд | B91: 200 | C91: 000 0409 0000000000 200 | D91: 7170311.13 | E91: 751796.68 | F91: 6418514.45
A92: Иные закупки товаров, работ и услуг для обеспечения государственных (муниципальных) нужд | B92: 200 | C92: 000 0409 0000000000 240 | D92: 7170311.13 | E92: 751796.68 | F92: 6418514.45
A93: Прочая закупка товаров, работ и услуг для обеспечения государственных (муниципальных) нужд | B93: 200 | C93: 000 0409 0000000000 244 | D93: 7170311.13 | E93: 751796.68 | F93: 6418514.45
A94: Другие вопросы в области национальной экономики | B94: 200 | C94: 000 0412 0000000000 000 | D94: 250000 | E94: - | F94: -
A95: Закупка товаров, работ и услуг для обеспечения государственных (муниципальных) нужд | B95: 200 | C95: 000 0412 0000000000 200 | D95: 250000 | E95: - | F95: -
A96: Иные закупки товаров, работ и услуг для обеспечения государственных (муниципальных) нужд | B96: 200 | C96: 000 0412 0000000000 240 | D96: 250000 | E96: - | F96: -
A97: Прочая закупка товаров, работ и услуг для обеспечения государственных (муниципальных) нужд | B97: 200 | C97: 000 0412 0000000000 244 | D97: 250000 | E97: - | F97: -
A98: ЖИЛИЩНО-КОММУНАЛЬНОЕ ХОЗЯЙСТВО | B98: 200 | C98: 000 0500 0000000000 000 | D98: 31113982.49 | E98: 3290745.86 | F98: 27823236.63
A99: Расходы на выплаты персоналу в целях обеспечения выполнения функций государственными (муниципальными) органами, казенными учреждениями, органами управления государственными внебюджетными фондами | B99: 200 | C99: 000 0500 0000000000 100 | D99: 7629500 | E99: 572772.64 | F99: 7056727.36
A100: Расходы на выплаты персоналу казенных учреждений | B100: 200 | C100: 000 0500 0000000000 110 | D100: 7629500 | E100: 572772.64 | F100: 7056727.36
A101: Фонд оплаты труда учреждений | B101: 200 | C101: 000 0500 0000000000 111 | D101: 5836900 | E101: 463185.98 | F101: 5373714.02
A102: Взносы по обязательному социальному страхованию на выплаты по оплате труда работников и иные выплаты работникам учреждений | B102: 200 | C102: 000 0500 0000000000 119 | D102: 1792600 | E102: 109586.66 | F102: 1683013.34
A103: Закупка товаров, работ и услуг для обеспечения государственных (муниципальных) нужд | B103: 200 | C103: 000 0500 0000000000 200 | D103: 23186082.49 | E103: 2713611.19 | F103: 20472471.3
A104: Иные закупки товаров, работ и услуг для обеспечения государственных (муниципальных) нужд | B104: 200 | C104: 000 0500 0000000000 240 | D104: 23186082.49 | E104: 2713611.19 | F104: 20472471.3
A105: Прочая закупка товаров, работ и услуг для обеспечения государственных (муниципальных) нужд | B105: 200 | C105: 000 0500 0000000000 244 | D105: 23186082.49 | E105: 2713611.19 | F105: 20472471.3
A106: Межбюджетные трансферты | B106: 200 | C106: 000 0500 0000000000 500 | D106: 70000 | E106: - | F106: -
A107: Иные межбюджетные трансферты | B107: 200 | C107: 000 0500 0000000000 540 | D107: 70000 | E107: - | F107: -
A108: Иные бюджетные ассигнования | B108: 200 | C108: 000 0500 0000000000 800 | D108: 228400 | E108: 4362.03 | F108: 224037.97
A109: Уплата налогов, сборов и иных платежей | B109: 200 | C109: 000 0500 0000000000 850 | D109: 228400 | E109: 4362.03 | F109: 224037.97
A110: Уплата налога на имущество организаций и земельного налога | B110: 200 | C110: 000 0500 0000000000 851 | D110: 192200 | E110: 4160 | F110: 188040
A111: Уплата прочих налогов, сборов | B111: 200 | C111: 000 0500 0000000000 852 | D111: 26500 | E111: 143 | F111: =IF(OR(D111="-",E111>=D111),"-",D111-IF(E111="-",0,E111)) -> 26357
A112: Уплата иных платежей | B112: 200 | C112: 000 0500 0000000000 853 | D112: 9700 | E112: 59.03 | F112: 9640.97
A113: Жилищное хозяйство | B113: 200 | C113: 000 0501 0000000000 000 | D113: 33400 | E113: 2834.8 | F113: 30565.2
A114: Закупка товаров, работ и услуг для обеспечения государственных (муниципальных) нужд | B114: 200 | C114: 000 0501 0000000000 200 | D114: 33400 | E114: 2834.8 | F114: 30565.2
A115: Иные закупки товаров, работ и услуг для обеспечения государственных (муниципальных) нужд | B115: 200 | C115: 000 0501 0000000000 240 | D115: 33400 | E115: 2834.8 | F115: 30565.2
A116: Прочая закупка товаров, работ и услуг для обеспечения государственных (муниципальных) нужд | B116: 200 | C116: 000 0501 0000000000 244 | D116: 33400 | E116: 2834.8 | F116: 30565.2
A117: Коммунальное хозяйство | B117: 200 | C117: 000 0502 0000000000 000 | D117: 669400 | E117: 916 | F117: 668484
A118: Закупка товаров, работ и услуг для обеспечения государственных (муниципальных) нужд | B118: 200 | C118: 000 0502 0000000000 200 | D118: 400000 | E118: - | F118: -
A119: Иные закупки товаров, работ и услуг для обеспечения государственных (муниципальных) нужд | B119: 200 | C119: 000 0502 0000000000 240 | D119: 400000 | E119: - | F119: -
A120: Прочая закупка товаров, работ и услуг для обеспечения государственных (муниципальных) нужд | B120: 200 | C120: 000 0502 0000000000 244 | D120: 400000 | E120: - | F120: -
A121: Межбюджетные трансферты | B121: 200 | C121: 000 0502 0000000000 500 | D121: 70000 | E121: - | F121: -
A122: Иные межбюджетные трансферты | B122: 200 | C122: 000 0502 0000000000 540 | D122: 70000 | E122: - | F122: -
A123: Иные бюджетные ассигнования | B123: 200 | C123: 000 0502 0000000000 800 | D123: 199400 | E123: 916 | F123: 198484
A124: Уплата налогов, сборов и иных платежей | B124: 200 | C124: 000 0502 0000000000 850 | D124: 199400 | E124: 916 | F124: 198484
A125: Уплата налога на имущество организаций и земельного налога | B125: 200 | C125: 000 0502 0000000000 851 | D125: 175600 | E125: 916 | F125: 174684
A126: Уплата прочих налогов, сборов | B126: 200 | C126: 000 0502 0000000000 852 | D126: 23800 | E126: - | F126: -
A127: Благоустройство | B127: 200 | C127: 000 0503 0000000000 000 | D127: 30411182.49 | E127: 3286995.06 | F127: 27124187.43
A128: Расходы на выплаты персоналу в целях обеспечения выполнения функций государственными (муниципальными) органами, казенными учреждениями, органами управления государственными внебюджетными фондами | B128: 200 | C128: 000 0503 0000000000 100 | D128: 7629500 | E128: 572772.64 | F128: 7056727.36
A129: Расходы на выплаты персоналу казенных учреждений | B129: 200 | C129: 000 0503 0000000000 110 | D129: 7629500 | E129: 572772.64 | F129: 7056727.36
A130: Фонд оплаты труда учреждений | B130: 200 | C130: 000 0503 0000000000 111 | D130: 5836900 | E130: 463185.98 | F130: 5373714.02
A131: Взносы по обязательному социальному страхованию на выплаты по оплате труда работников и иные выплаты работникам учреждений | B131: 200 | C131: 000 0503 0000000000 119 | D131: 1792600 | E131: 109586.66 | F131: 1683013.34
A132: Закупка товаров, работ и услуг для обеспечения государственных (муниципальных) нужд | B132: 200 | C132: 000 0503 0000000000 200 | D132: 22752682.49 | E132: 2710776.39 | F132: 20041906.1
A133: Иные закупки товаров, работ и услуг для обеспечения государственных (муниципальных) нужд | B133: 200 | C133: 000 0503 0000000000 240 | D133: 22752682.49 | E133: 2710776.39 | F133: 20041906.1
A134: Прочая закупка товаров, работ и услуг для обеспечения государственных (муниципальных) нужд | B134: 200 | C134: 000 0503 0000000000 244 | D134: 22752682.49 | E134: 2710776.39 | F134: 20041906.1
A135: Иные бюджетные ассигнования | B135: 200 | C135: 000 0503 0000000000 800 | D135: 29000 | E135: 3446.03 | F135: 25553.97
A136: Уплата налогов, сборов и иных платежей | B136: 200 | C136: 000 0503 0000000000 850 | D136: 29000 | E136: 3446.03 | F136: 25553.97
A137: Уплата налога на имущество организаций и земельного налога | B137: 200 | C137: 000 0503 0000000000 851 | D137: 16600 | E137: 3244 | F137: 13356
A138: Уплата прочих налогов, сборов | B138: 200 | C138: 000 0503 0000000000 852 | D138: 2700 | E138: 143 | F138: 2557
A139: Уплата иных платежей | B139: 200 | C139: 000 0503 0000000000 853 | D139: 9700 | E139: 59.03 | F139: 9640.97
A140: КУЛЬТУРА, КИНЕМАТОГРАФИЯ | B140: 200 | C140: 000 0800 0000000000 000 | D140: 15140200 | E140: 1681465.06 | F140: 13458734.94
A141: Закупка товаров, работ и услуг для обеспечения государственных (муниципальных) нужд | B141: 200 | C141: 000 0800 0000000000 200 | D141: 15000 | E141: - | F141: -
A142: Иные закупки товаров, работ и услуг для обеспечения государственных (муниципальных) нужд | B142: 200 | C142: 000 0800 0000000000 240 | D142: 15000 | E142: - | F142: -
A143: Прочая закупка товаров, работ и услуг для обеспечения государственных (муниципальных) нужд | B143: 200 | C143: 000 0800 0000000000 244 | D143: 15000 | E143: - | F143: =IF(OR(D143="-",E143>=D143),"-",D143-IF(E143="-",0,E143)) -> -
A144: Предоставление субсидий бюджетным, автономным учреждениям и иным некоммерческим организациям | B144: 200 | C144: 000 0800 0000000000 600 | D144: 15125200 | E144: 1681465.06 | F144: 13443734.94
A145: Субсидии бюджетным учреждениям | B145: 200 | C145: 000 0800 0000000000 610 | D145: 15125200 | E145: 1681465.06 | F145: 13443734.94
A146: Субсидии бюджетным учреждениям на финансовое обеспечение государственного (муниципального) задания на оказание государственных (муниципальных) услуг (выполнение работ) | B146: 200 | C146: 000 0800 0000000000 611 | D146: 15125200 | E146: 1681465.06 | F146: 13443734.94
A147: Культура | B147: 200 | C147: 000 0801 0000000000 000 | D147: 15125200 | E147: 1681465.06 | F147: 13443734.94
A148: Предоставление субсидий бюджетным, автономным учреждениям и иным некоммерческим организациям | B148: 200 | C148: 000 0801 0000000000 600 | D148: 15125200 | E148: 1681465.06 | F148: 13443734.94
A149: Субсидии бюджетным учреждениям | B149: 200 | C149: 000 0801 0000000000 610 | D149: 15125200 | E149: 1681465.06 | F149: 13443734.94
A150: Субсидии бюджетным учреждениям на финансовое обеспечение государственного (муниципального) задания на оказание государственных (муниципальных) услуг (выполнение работ) | B150: 200 | C150: 000 0801 0000000000 611 | D150: 15125200 | E150: 1681465.06 | F150: 13443734.94
A151: Другие вопросы в области культуры, кинематографии | B151: 200 | C151: 000 0804 0000000000 000 | D151: 15000 | E151: - | F151: -
A152: Закупка товаров, работ и услуг для обеспечения государственных (муниципальных) нужд | B152: 200 | C152: 000 0804 0000000000 200 | D152: 15000 | E152: - | F152: -
A153: Иные закупки товаров, работ и услуг для обеспечения государственных (муниципальных) нужд | B153: 200 | C153: 000 0804 0000000000 240 | D153: 15000 | E153: - | F153: -
A154: Прочая закупка товаров, работ и услуг для обеспечения государственных (муниципальных) нужд | B154: 200 | C154: 000 0804 0000000000 244 | D154: 15000 | E154: - | F154: -
A155: СРЕДСТВА МАССОВОЙ ИНФОРМАЦИИ | B155: 200 | C155: 000 1200 0000000000 000 | D155: 300000 | E155: - | F155: -
A156: Закупка товаров, работ и услуг для обеспечения государственных (муниципальных) нужд | B156: 200 | C156: 000 1200 0000000000 200 | D156: 300000 | E156: - | F156: -
A157: Иные закупки товаров, работ и услуг для обеспечения государственных (муниципальных) нужд | B157: 200 | C157: 000 1200 0000000000 240 | D157: 300000 | E157: - | F157: -
A158: Прочая закупка товаров, работ и услуг для обеспечения государственных (муниципальных) нужд | B158: 200 | C158: 000 1200 0000000000 244 | D158: 300000 | E158: - | F158: -
A159: Телевидение и радиовещание | B159: 200 | C159: 000 1201 0000000000 000 | D159: 300000 | E159: - | F159: -
A160: Закупка товаров, работ и услуг для обеспечения государственных (муниципальных) нужд | B160: 200 | C160: 000 1201 0000000000 200 | D160: 300000 | E160: - | F160: -
A161: Иные закупки товаров, работ и услуг для обеспечения государственных (муниципальных) нужд | B161: 200 | C161: 000 1201 0000000000 240 | D161: 300000 | E161: - | F161: -
A162: Прочая закупка товаров, работ и услуг для обеспечения государственных (муниципальных) нужд | B162: 200 | C162: 000 1201 0000000000 244 | D162: 300000 | E162: - | F162: -
A163: ОБСЛУЖИВАНИЕ ГОСУДАРСТВЕННОГО И МУНИЦИПАЛЬНОГО ДОЛГА | B163: 200 | C163: 000 1300 0000000000 000 | D163: 700 | E163: 243.9 | F163: 456.1
A164: Обслуживание государственного (муниципального) долга | B164: 200 | C164: 000 1300 0000000000 700 | D164: 700 | E164: 243.9 | F164: 456.1
A165: Обслуживание муниципального долга | B165: 200 | C165: 000 1300 0000000000 730 | D165: 700 | E165: 243.9 | F165: 456.1
A166: Обслуживание государственного внутреннего и муниципального долга | B166: 200 | C166: 000 1301 0000000000 000 | D166: 700 | E166: 243.9 | F166: 456.1
A167: Обслуживание государственного (муниципального) долга | B167: 200 | C167: 000 1301 0000000000 700 | D167: 700 | E167: 243.9 | F167: 456.1
A168: Обслуживание муниципального долга | B168: 200 | C168: 000 1301 0000000000 730 | D168: 700 | E168: 243.9 | F168: 456.1
A170: Результат исполнения бюджета (дефицит / профицит) | B170: 450 | C170: x | D170: 1631050.68 | E170: -1689349.72 | F170: x

Sheet Источники
A1: Форма 0503117 с.3
A2: 3. Источники финансирования дефицита бюджета
A4: Наименование показателя | B4: Код строки | C4: Код источника финансирования дефицита бюджета по бюджетной классификации | D4: Утвержденные бюджетные назначения | E4: Исполнено | F4: Неисполненные назначения
A11: 1 | B11: 2 | C11: 3 | D11: 4 | E11: 5 | F11: 6
A12: Источники финансирования дефицита бюджета - всего | B12: 500 | C12: x | D12: 2402949.32 | E12: 1689349.72 | F12: x
A13: в том числе:
A14: источники внутреннего финансирования бюджета | B14: 520 | C14: x | D14: -199800 | E14: - | F14: -199800
A15: из них:
A16: Бюджетные кредиты от других бюджетов бюджетной системы Российской Федерации | B16: 520 | C16: 951 01030000000000000 | D16: -199800 | E16: - | F16: -199800
A17: Бюджетные кредиты от других бюджетов бюджетной системы Российской Федерации в валюте Российской Федерации | B17: 520 | C17: 951 01030100000000000 | D17: -199800 | E17: - | F17: -199800
A18: Погашение бюджетами городских поселений кредитов от других бюджетов бюджетной системы Российской Федерации в валюте Российской Федерации | B18: 520 | C18: 951 01030100130000810 | D18: -199800 | E18: - | F18: -199800
A19: источники внешнего финансирования бюджета | B19: 620 | C19: x | D19: - | E19: - | F19: -
A20: Изменение остатков средств | B20: 700 | C20: *** 01000000000000000 | D20: 2602749.32 | E20: 1689349.72 | F20: 913399.6
A21: Изменение остатков средств на счетах по учету средств бюджета | B21: 700 | C21: *** 01050000000000000 | D21: 2602749.32 | E21: 1689349.72 | F21: 913399.6
A22: Изменение иных финансовых активов за счет средств, размещенных в депозиты в валюте Российской Федерации и иностранной валюте в кредитных организациях | B22: 700 | C22: *** 01060000000000000 | D22: - | E22: - | F22: -
A23: увеличение остатков средств | B23: 710 | C23: 951 01050000000000500 | D23: -70016400 | E23: -6089433.49 | F23: x
A24: Изменение остатков средств на счетах по учету средств бюджетов | B24: 710 | C24: 951 01050000000000000 | D24: -70016400 | E24: -6089433.49 | F24: x
A25: Увеличение прочих остатков денежных средств бюджетов городских поселений | B25: 710 | C25: 951 01050201130000510 | D25: -70016400 | E25: -6089433.49 | F25: x
A26: уменьшение остатков средств | B26: 720 | C26: 951 01050000000000600 | D26: 72619149.32 | E26: 7778783.21 | F26: x
A27: Уменьшение прочих остатков денежных средств бюджетов городских поселений | B27: 720 | C27: 951 01050201130000610 | D27: 72619149.32 | E27: 7778783.21 | F27: x

Sheet ExportParams (hidden)
A1: EXPORT_SRC_KIND | B1: 5
A2: EXPORT_PARAM_SRC_KIND | B2: 3
A3: EXPORT_SRC_CODE | B3: 58035-08
